bitfinex/quotes_ETHUSD_20251015
["timestamp","ask_amount","ask_price","bid_price","bid_amount"]
[1760543299750,2.51175126,3981.3,3980.5,3.17659534]
[1760543299946,2.51167055,3981.5,3980.6,2.51217568]
[1760543300187,2.72627415,3981.9,3980.8,2.51200427]
[1760543300369,2.51158415,3981.6,3980.8,2.51205541]
[1760543300620,2.51162446,3981.5,3980.7,2.51207284]
[1760543300824,0.2149,3981.9,3980.5,0.6644]
[1760543300989,2.51199476,3981.0,3980.5,0.2186]
[1760543301332,0.108,3981.4,3980.1,0.2186]
[1760543301637,2.51161004,3981.6,3979.6,2.51480684]
[1760543301638,2.51205787,3980.8,3979.6,2.51480684]
[1760543301788,0.2308,3981.5,3979.7,0.47092752]
[1760543302122,0.2308,3981.5,3980.0,2.51253369]
[1760543302322,0.1104,3981.4,3979.7,0.4458]
[1760543302523,2.51225663,3980.5,3979.6,0.002]
[1760543302727,0.1256,3979.8,3979.6,0.002]
[1760543303325,0.1256,3979.8,3979.7,0.4458]
[1760543303529,0.1256,3979.8,3979.7,2.95855221]
[1760543303735,0.1256,3980.5,3979.7,1.14310345]
[1760543304250,0.1256,3980.5,3979.9,2.51259762]
[1760543304426,2.51212098,3980.7,3979.9,2.51261739]
[1760543304616,0.2209,3980.9,3979.7,3.1138]
[1760543304617,0.1256,3980.2,3980.0,2.51255232]
[1760543304816,0.1256,3980.2,3980.1,0.2186]
[1760543307190,0.1256,3979.7,3979.6,0.002]
[1760543307810,0.1256,3979.7,3979.6,2.51481535]
[1760543308562,2.51159729,3981.6,3979.6,2.51481535]
[1760543308563,0.3298,3981.5,3980.2,2.51240578]
[1760543308853,0.2308,3981.5,3980.1,0.6644]
[1760543309020,2.51199185,3981.0,3980.2,2.51239439]
[1760543309223,2.51199185,3981.0,3980.1,0.2186]
[1760543309224,0.3298,3981.5,3980.1,0.2186]
[1760543309543,2.51239232,3980.3,3979.6,2.51476101]
[1760543309848,2.51229645,3980.5,3979.7,2.51274718]
[1760543310048,2.51227362,3980.5,3979.7,2.51274718]
[1760543310462,0.1002,3980.8,3979.6,0.002]
[1760543310641,2.51275221,3979.7,3979.6,0.002]
[1760543311653,0.1002,3980.4,3979.6,0.002]
[1760543311839,2.73294464,3980.9,3979.6,0.4478]
[1760543312174,0.2209,3980.9,3979.6,0.74406473]
[1760543312527,0.2209,3980.9,3979.6,0.002]
[1760543312713,2.51242264,3980.3,3979.6,0.002]
[1760543312911,0.1014,3980.8,3979.6,0.002]
[1760543313155,2.51212098,3980.7,3979.7,2.51275221]
[1760543313359,0.2209,3980.9,3979.8,0.25147522]
[1760543313666,2.51241548,3980.3,3979.6,0.002]
[1760543313825,2.51241548,3980.3,3979.6,2.51476736]
[1760543314158,2.51224816,3980.5,3979.6,0.002]
[1760543314460,2.72535221,3979.7,3979.6,0.002]
[1760543315240,2.82785221,3979.7,3979.6,0.002]
[1760543317383,4.24094164,3979.4,3979.3,1e-08]
[1760543317659,4.24132059,3978.8,3978.7,1e-08]
[1760543318457,1.728,3977.2,3976.2,0.003]
[1760543318669,9.44113003,3976.2,3973.9,0.2147]
[1760543318952,0.3177,3976.2,3974.2,0.4671]
[1760543319325,0.2209,3977.0,3974.4,2.51610305]
[1760543319629,0.2209,3977.0,3974.5,1.8658062]
[1760543319828,2.5133945,3978.7,3974.6,0.4671]
[1760543319829,0.221,3977.5,3974.6,0.4671]
[1760543320031,10.16685892,3978.6,3975.3,1.728]
[1760543320232,20.34945856,3978.5,3975.5,0.6336]
[1760543320430,1.8294,3978.4,3975.6,0.4671]
[1760543320646,2.51447962,3977.0,3975.9,2.51514644]
[1760543320859,1.728,3978.2,3975.7,0.13154]
[1760543320860,0.6336,3979.0,3977.1,2.51439098]
[1760543321016,0.6336,3979.0,3975.7,2.64678945]
[1760543321017,0.1014,3979.4,3977.2,0.2147]
[1760543321216,0.1014,3979.4,3977.2,2.4098]
[1760543321416,0.1014,3979.4,3977.3,0.02514268]
[1760543321647,0.1014,3979.0,3977.2,0.2147]
[1760543321854,2.51333354,3978.8,3977.4,2.51419839]
[1760543322075,0.1014,3979.0,3977.2,0.2147]
[1760543322355,10.16685892,3978.8,3976.7,0.4671]
[1760543322563,10.16685892,3979.4,3977.3,0.6818]
[1760543322729,2.51264928,3979.9,3978.5,2.51349757]
[1760543322936,2.51262594,3979.9,3978.6,0.2147]
[1760543323155,2.51293764,3979.5,3978.6,0.2147]
[1760543323486,0.1027,3980.1,3978.1,0.2147]
[1760543323487,3.27344,3979.9,3978.1,0.2147]
[1760543323668,2.51293261,3979.5,3977.8,0.4671]
[1760543323841,5.849268,3979.3,3977.3,0.2147]
[1760543324046,4.34474526,3979.4,3977.3,0.2147]
[1760543324047,2.51375322,3978.2,3977.3,0.2147]
[1760543324281,0.1038,3979.4,3977.4,0.4671]
[1760543324455,2.51338376,3978.7,3978.6,0.002]
[1760543324851,2.61838376,3978.7,3978.6,0.002]
[1760543325056,10.00867176,3978.7,3978.6,0.002]
[1760543325377,5.59380176,3978.7,3978.6,0.002]
[1760543325586,2.61838376,3978.7,3978.6,0.002]
[1760543325947,2.51297749,3979.4,3978.6,0.002]
[1760543325948,0.3294,3979.6,3978.6,0.002]
[1760543326152,2.51328568,3978.9,3978.6,0.002]
[1760543326349,2.51311229,3979.2,3978.6,0.002]
[1760543326551,2.84227483,3979.6,3978.6,0.002]
[1760543326795,1.728,3979.9,3978.6,0.002]
[1760543326796,2.51262594,3979.9,3978.6,0.002]
[1760543326977,0.2198,3980.0,3978.6,0.4691]
[1760543327161,0.2198,3980.0,3978.6,0.002]
[1760543327162,0.222,3979.9,3978.6,0.002]
[1760543327362,2.51332106,3978.8,3978.6,0.002]
[1760543327747,2.51326381,3978.9,3978.6,0.002]
[1760543327948,2.51320238,3979.0,3978.6,0.002]
[1760543328287,7.703175,3979.8,3978.6,0.002]
[1760543328584,0.099,3979.3,3978.6,0.002]
[1760543328955,2.51323164,3979.0,3978.6,0.002]
[1760543329151,0.3223,3979.9,3978.6,0.002]
[1760543329367,0.3223,3979.9,3978.7,0.4671]
[1760543329685,2.51323992,3979.0,3978.6,0.002]
[1760543329981,2.5132506,3979.0,3978.6,0.002]
[1760543330185,2.51325834,3978.9,3978.6,0.002]
[1760543330384,2.51338376,3978.7,3978.6,0.002]
[1760543330903,0.1003,3979.4,3978.6,0.002]
[1760543331063,0.1003,3980.0,3978.6,0.002]
[1760543331393,0.1256,3978.7,3978.6,0.002]
[1760543332096,2.61498376,3978.7,3978.6,0.002]
[1760543332664,2.51338376,3978.7,3978.6,0.002]
[1760543332883,0.1029,3979.8,3978.6,0.002]
[1760543333399,2.51275221,3979.7,3978.6,0.002]
[1760543333569,2.51319883,3979.0,3978.6,0.002]
[1760543333915,2.73466452,3979.9,3978.6,0.002]
[1760543334060,2.5129868,3979.4,3978.6,0.002]
[1760543334800,0.222,3979.9,3978.6,0.002]
[1760543334969,2.51316609,3979.1,3978.6,0.002]
[1760543335170,2.51268907,3979.8,3978.6,0.002]
[1760543335171,13.593284,3979.7,3978.6,0.002]
[1760543335478,2.51314558,3979.1,3978.6,0.002]
[1760543335661,2.51338376,3978.7,3978.6,0.002]
[1760543336102,2.51304175,3979.3,3978.6,0.002]
[1760543336263,2.51305805,3979.3,3978.6,0.4432]
[1760543336468,2.51289541,3979.5,3978.6,0.4432]
[1760543336772,0.1029,3979.8,3978.6,0.002]
[1760543336967,0.2253,3978.7,3978.6,0.002]
[1760543337197,2.73868376,3978.7,3978.6,0.002]
[1760543337510,2.51324146,3979.0,3978.6,0.002]
[1760543337681,2.51338376,3978.7,3978.6,0.002]
[1760543338014,2.51326294,3978.9,3978.6,0.002]
[1760543338236,2.51326637,3978.9,3978.6,0.002]
[1760543338399,2.51321972,3979.0,3978.6,0.002]
[1760543338820,2.51328035,3978.9,3978.6,0.002]
[1760543339014,2.5128785,3979.5,3978.6,0.002]
[1760543339314,2.51338376,3978.7,3978.6,0.002]
[1760543340217,2.61868376,3978.7,3978.6,0.002]
[1760543340735,0.1053,3979.5,3978.6,0.002]
[1760543340945,0.1065,3980.0,3978.6,0.002]
[1760543341125,0.1065,3980.0,3978.6,2.95663584]
[1760543341312,0.1065,3980.0,3978.6,0.002]
[1760543341500,0.1065,3980.0,3978.6,2.51544237]
[1760543341700,2.51274966,3979.8,3978.8,2.51327943]
[1760543341911,0.2212,3979.9,3978.8,2.51332059]
[1760543341912,0.1256,3978.9,3978.8,2.51332059]
[1760543342111,2.73388141,3979.9,3978.9,2.51323471]
[1760543342337,0.1256,3979.2,3979.1,2.51313111]
[1760543342642,0.1256,3979.7,3979.1,0.6623]
[1760543342817,0.1256,3979.4,3979.1,0.6623]
[1760543343139,0.1256,3979.4,3978.8,0.1256]
[1760543343140,2.63854505,3979.4,3978.8,0.1256]
[1760543343448,0.3275,3979.9,3978.6,0.002]
[1760543343603,2.51338376,3978.7,3978.6,0.002]
[1760543343804,0.1086,3979.5,3978.6,0.002]
[1760543344030,0.2189,3979.9,3978.6,0.002]
[1760543344233,0.1256,3978.8,3978.6,0.002]
[1760543344407,0.1256,3979.2,3979.1,2.51313111]
[1760543344728,0.1256,3979.6,3979.1,0.47241311]
[1760543344945,1.728,3980.8,3979.2,0.2211]
[1760543345104,2.51294166,3979.4,3979.2,0.2211]
[1760543345308,0.2286,3979.8,3978.6,0.4432]
[1760543345758,2.73508376,3978.7,3978.6,0.002]
[1760543346172,4.90648076,3978.7,3978.6,0.002]
[1760543346465,2.83538376,3978.7,3978.6,0.002]
[1760543346825,2.51338376,3978.7,3978.6,0.002]
[1760543347339,1.9566,3979.8,3978.6,0.002]
[1760543347537,2.51318205,3979.1,3978.6,0.4461]
[1760543347858,1.9566,3979.8,3978.6,0.4461]
[1760543347859,2.51325743,3978.9,3978.6,0.002]
[1760543348058,0.3312,3979.8,3978.6,0.002]
[1760543348461,2.51306635,3979.3,3978.6,0.002]
[1760543348628,2.5130822,3979.2,3978.6,0.002]
[1760543348826,2.51292866,3979.5,3978.6,0.002]
[1760543349142,0.1026,3979.3,3978.6,0.002]
[1760543349385,2.73148376,3978.7,3978.6,0.002]
[1760543349734,2.83528376,3978.7,3978.6,0.002]
[1760543350248,2.73148376,3978.7,3978.6,0.002]
[1760543350658,2.51338376,3978.7,3978.6,0.002]
[1760543350963,0.2159,3978.9,3978.6,0.002]
[1760543351259,2.61938376,3978.7,3978.6,0.002]
[1760543351440,2.51338376,3978.7,3978.6,0.002]
[1760543351636,2.61938376,3978.7,3978.6,0.002]
[1760543352029,2.51338376,3978.7,3978.6,0.002]
[1760543352351,2.51337135,3978.8,3978.6,0.002]
[1760543352524,2.51338376,3978.7,3978.6,0.002]
[1760543353061,2.51332305,3978.8,3978.6,0.002]
[1760543353280,1.728,3979.6,3978.6,0.002]
[1760543353580,2.51325401,3979.0,3978.6,0.002]
[1760543353882,0.2286,3979.8,3978.6,2.95949396]
[1760543354183,0.2286,3979.8,3978.6,0.81960548]
[1760543354363,0.1071,3980.4,3978.6,0.4461]
[1760543354555,2.51252615,3980.1,3979.3,2.51296283]
[1760543354765,0.1256,3979.6,3979.4,0.2159]
[1760543355079,0.1256,3979.6,3979.5,2.9569785]
[1760543355286,0.1256,3980.5,3979.5,0.59482878]
[1760543355481,0.1256,3980.5,3980.4,2.51231032]
[1760543355784,2.51156342,3981.6,3979.4,0.2159]
[1760543355785,0.2117,3980.7,3979.4,0.2159]
[1760543355984,2.5126539,3979.9,3979.4,0.2159]
[1760543356165,0.1256,3979.4,3978.6,0.662]
[1760543356477,0.3241,3980.6,3979.3,0.2159]
[1760543356679,0.1256,3980.1,3980.0,2.51256281]
[1760543356882,0.1256,3980.3,3980.0,0.4441]
[1760543357057,0.1256,3980.3,3980.1,0.4441]
[1760543357244,0.1256,3980.6,3980.1,0.4441]
[1760543357642,0.2268,3981.4,3979.6,0.4441]
[1760543357953,0.1256,3980.2,3979.6,0.4441]
[1760543358166,2.51250923,3980.1,3979.6,0.4441]
[1760543358367,0.1256,3980.2,3979.5,0.1256]
[1760543358671,0.1256,3980.2,3979.6,0.4441]
[1760543359055,0.2261,3979.7,3978.4,0.4441]
[1760543359271,2.51338376,3978.7,3978.6,0.002]
[1760543360796,2.61698376,3978.7,3978.6,0.002]
[1760543361082,2.61698376,3978.7,3977.8,0.002]
[1760543361083,4.34498376,3978.7,3977.8,0.002]
[1760543361294,2.73948923,3977.9,3977.8,0.002]
[1760543361949,4.70081612,3977.9,3977.8,0.002]
[1760543362246,2.51521706,3975.8,3975.7,0.003]
[1760543364254,2.62044899,3976.9,3975.7,0.003]
[1760543364255,0.2087,3976.8,3975.7,0.003]
[1760543364455,0.3146,3977.5,3975.7,0.4471]
[1760543364654,1.728,3977.7,3975.7,0.4471]
[1760543364902,2.51463634,3976.8,3975.7,0.4471]
[1760543365054,0.1089,3977.5,3975.7,0.7433495]
[1760543365373,2.51470411,3976.7,3975.8,0.4441]
[1760543365557,0.1089,3977.5,3975.8,0.4441]
[1760543365887,2.51463621,3976.8,3975.8,0.4441]
[1760543366085,2.51476409,3976.6,3975.8,2.95931302]
[1760543366292,2.51474878,3976.6,3975.8,0.4441]
[1760543366477,0.1089,3977.5,3975.8,0.4441]
[1760543366658,2.51485106,3976.4,3975.8,0.4441]
[1760543366860,0.1089,3977.5,3975.9,0.29624391]
[1760543367084,2.51395243,3977.8,3976.3,0.2159]
[1760543367296,0.2256,3977.9,3976.3,0.66]
[1760543367492,2.72690362,3978.9,3976.4,0.46008261]
[1760543367493,13.09178633,3978.7,3976.4,0.46008261]
[1760543367787,1.728,3978.6,3976.9,2.51446672]
[1760543367991,13.0917973,3978.7,3977.0,2.51445813]
[1760543368213,0.2136,3978.9,3977.1,0.51175581]
[1760543368417,0.2136,3978.9,3977.1,0.66]
[1760543368617,2.51338376,3978.7,3977.1,0.2159]
[1760543368817,2.51408135,3977.6,3977.1,0.2159]
[1760543369023,0.103,3978.6,3976.6,0.4441]
[1760543369024,0.1256,3977.3,3976.6,0.4441]
[1760543369186,0.1256,3977.1,3976.6,2.95879965]
[1760543369520,2.64001208,3977.1,3976.7,0.30843996]
[1760543369683,0.1256,3977.1,3976.4,2.64043555]
[1760543369885,2.51472118,3976.6,3976.1,0.4441]
[1760543370108,0.1256,3976.6,3975.9,2.85664634]
[1760543370417,0.1042,3977.6,3975.9,2.85664634]
[1760543370418,0.1042,3978.2,3976.0,0.4692509]
[1760543370614,1.728,3978.7,3976.2,0.6336]
[1760543370816,0.1055,3978.8,3976.4,0.6336]
[1760543371002,0.1055,3978.8,3976.3,6.00157078]
[1760543371003,0.1055,3978.8,3976.5,0.4441]
[1760543371204,0.2136,3978.9,3976.8,0.6336]
[1760543371404,10.58089719,3979.4,3977.9,2.51383514]
[1760543371606,10.58089719,3979.4,3978.0,0.2159]
[1760543371821,2.51281593,3979.6,3978.1,0.4441]
[1760543372009,0.1066,3980.0,3978.2,2.51369966]
[1760543372317,0.1066,3980.0,3978.3,0.31736997]
[1760543372495,2.5128617,3979.6,3978.8,2.51331496]
[1760543372699,2.5128617,3979.6,3978.8,2.51330026]
[1760543373021,0.2067,3980.1,3978.6,2.51341036]
[1760543373221,2.51267971,3979.9,3979.0,2.51314931]
[1760543373386,2.51261811,3980.0,3979.1,2.513114]
[1760543373590,0.001,3980.3,3979.2,2.51306742]
[1760543373814,2.51341715,3980.3,3979.3,2.53812171]
[1760543374124,2.51248612,3980.2,3979.4,2.72882366]
[1760543374326,0.001,3980.3,3979.4,0.2159]
[1760543374491,0.001,3980.3,3979.5,0.4441]
[1760543374884,0.001,3980.3,3980.2,2.72833656]
[1760543375289,0.001,3980.3,3980.2,4.07887022]
[1760543375490,0.001,3980.3,3980.2,3.44527022]
[1760543376109,0.001,3980.3,3979.4,0.2159]
[1760543376439,2.51243656,3980.2,3979.4,0.2159]
[1760543376594,0.001,3980.3,3979.5,2.5128785]
[1760543376800,0.001,3980.3,3979.6,2.51281439]
[1760543377002,0.001,3980.3,3979.4,2.72882762]
[1760543377201,2.51244838,3980.2,3979.4,2.72882368]
[1760543377412,0.001,3980.3,3979.4,0.2159]
[1760543377617,0.001,3980.3,3980.0,2.51251041]
[1760543377828,0.001,3980.3,3979.8,2.51262965]
[1760543378025,0.001,3980.3,3979.5,0.4719]
[1760543378423,0.001,3980.3,3980.1,2.51247963]
[1760543378733,0.001,3980.3,3979.8,2.51264687]
[1760543379247,0.001,3980.3,3980.0,2.51254809]
[1760543379710,0.001,3980.3,3979.5,0.4719]
[1760543379910,0.001,3980.3,3980.2,2.72633656]
[1760543380123,0.001,3980.3,3980.2,3.25022239]
[1760543380309,0.001,3980.3,3980.2,2.72633656]
[1760543380505,0.001,3980.3,3980.2,3.17343656]
[1760543381243,1e-08,3980.7,3980.6,3.14578409]
[1760543381444,1e-08,3980.7,3980.6,4.24018409]
[1760543381740,1e-08,3980.7,3980.6,4.68728409]
[1760543382045,0.001,3981.1,3981.0,2.51193167]
[1760543382204,0.001,3981.1,3981.0,4.87353167]
[1760543382405,0.001,3981.1,3981.0,7.98663167]
[1760543382628,0.001,3981.1,3981.0,4.68703167]
[1760543382829,0.001,3981.1,3980.6,0.71995522]
[1760543383013,0.001,3981.1,3980.2,1.728]
[1760543383238,0.001,3981.1,3979.9,0.4471]
[1760543383451,0.001,3981.1,3980.6,2.512138]
[1760543383749,0.001,3981.1,3981.0,2.51193167]
[1760543387018,0.001,3981.1,3980.3,1.728]
[1760543387220,0.001,3981.1,3981.0,2.51193167]
[1760543387443,0.001,3981.1,3980.3,2.70656316]
[1760543387621,0.001,3981.1,3980.7,2.51210677]
[1760543388247,0.001,3981.1,3980.5,2.51224026]
[1760543388452,0.2018,3980.5,3978.6,0.2139]
[1760543388628,0.1066,3980.4,3978.6,0.2139]
[1760543388825,2.51292045,3979.5,3978.0,1.0309]
[1760543389027,0.2237,3979.4,3978.8,2.51327559]
[1760543389366,0.2215,3979.9,3978.8,0.25132756]
[1760543389538,2.51268907,3979.8,3978.8,0.25132756]
[1760543389868,0.3118,3980.5,3978.9,0.4471]
[1760543390076,0.2009,3980.9,3979.0,0.6336]
[1760543390361,2.51225861,3980.5,3979.7,2.51269401]
[1760543390670,2.51220197,3980.6,3979.8,2.5126536]
[1760543390891,0.112,3980.8,3979.1,2.8789]
[1760543391196,0.112,3980.8,3979.2,0.3326]
[1760543391485,0.1256,3979.7,3979.1,0.3395]
[1760543391645,0.1256,3979.7,3979.6,2.51281535]
[1760543392180,0.112,3980.7,3979.1,0.3395]
[1760543392181,0.1256,3980.0,3979.8,2.51268008]
[1760543392386,0.1256,3980.0,3979.3,0.1256]
[1760543392551,0.1256,3980.0,3979.9,2.51262594]
[1760543392752,2.51194762,3981.0,3979.9,2.51262594]
[1760543392753,2.51292792,3981.1,3979.9,0.69836259]
[1760543392975,2.5128803,3981.1,3979.1,0.2139]
[1760543393283,0.001,3981.1,3980.3,2.512352]
[1760543393486,0.001,3981.1,3980.6,2.51212761]
[1760543393779,0.001,3981.1,3980.3,2.51233462]
[1760543393958,2.51198675,3981.0,3980.3,2.51236574]
[1760543394155,0.2,3980.9,3980.1,2.51248828]
[1760543394355,0.2,3980.9,3980.4,2.51225638]
[1760543394561,0.2,3980.9,3979.6,2.51281535]
[1760543394562,0.001,3981.1,3980.6,2.51212792]
[1760543394982,0.001,3981.1,3980.7,2.51211851]
[1760543395165,0.001,3981.1,3979.3,2.51299385]
[1760543395166,10.67459719,3980.7,3979.3,2.51299385]
[1760543395370,0.1138,3980.6,3978.3,0.4471]
[1760543395572,0.1138,3980.6,3978.5,1.728]
[1760543395757,0.1138,3980.6,3979.6,2.5127694]
[1760543395960,0.1138,3980.6,3979.7,2.51275221]
[1760543396164,2.5122472,3980.5,3979.8,2.51267795]
[1760543396359,2.51233375,3980.4,3979.2,0.2139]
[1760543396560,2.51226221,3980.5,3979.7,2.51274346]
[1760543396766,2.51233286,3980.4,3979.7,2.51274346]
[1760543397055,0.1138,3980.6,3979.2,0.2139]
[1760543397251,0.001,3981.1,3979.3,0.34254746]
[1760543397490,0.001,3981.1,3980.2,2.51240395]
[1760543397787,2.50155316,3981.1,3980.3,2.51231269]
[1760543397971,0.1146,3981.6,3980.3,2.5123708]
[1760543398177,2.51167364,3981.5,3980.1,0.2153]
[1760543398396,0.1146,3981.6,3980.8,2.5120395]
[1760543398594,2.6262014,3981.6,3980.9,2.51199419]
[1760543398771,2.51167984,3981.4,3980.6,2.51213077]
[1760543399100,2.51160762,3981.6,3980.6,2.51213818]
[1760543399302,2.51162737,3981.5,3980.7,2.51209853]
[1760543399525,2.51168357,3981.4,3980.2,0.4364]
[1760543399713,0.1146,3981.3,3979.7,2.665]
[1760543399912,2.5119218,3981.1,3980.3,2.51235938]
[1760543400075,2.51196231,3981.0,3980.3,2.51235938]
[1760543400276,2.51180548,3981.2,3980.1,0.2153]
[1760543400579,0.1146,3981.7,3980.1,0.2153]
[1760543400795,2.51162184,3981.5,3980.8,2.51200631]
[1760543400997,0.2214,3981.8,3980.7,2.51212098]
[1760543401197,0.001,3981.9,3980.7,0.2948521]
[1760543401514,0.001,3981.9,3981.8,2.51142699]
[1760543401673,0.001,3981.9,3981.8,2.53654125]
[1760543401878,0.001,3981.9,3981.8,2.51142699]
[1760543402104,0.001,3981.9,3981.5,0.4364]
[1760543402309,0.2202,3981.9,3980.9,2.51199477]
[1760543402613,0.3351,3981.9,3980.8,0.2153]
[1760543402819,0.001,3981.9,3980.9,0.02511994]
[1760543403002,0.001,3981.9,3981.8,2.51142699]
[1760543403188,0.001,3981.9,3980.8,0.4364]
[1760543403710,0.2172,3981.8,3980.2,2.1644]
[1760543403922,0.2172,3981.8,3980.3,3.1004]
[1760543404076,0.001,3981.9,3980.4,0.94077]
[1760543404277,0.001,3981.9,3981.5,2.5115699]
[1760543404522,0.001,3981.9,3980.8,2.664]
[1760543404687,0.001,3981.9,3980.9,2.51199477]
[1760543404890,2.74064852,3981.8,3979.8,0.31014]
[1760543405091,2.51149006,3981.7,3980.3,0.4364]
[1760543405291,2.51149006,3981.7,3981.0,2.51193137]
[1760543405525,2.61649135,3981.7,3980.8,2.51204989]
[1760543405683,0.3014,3981.6,3979.6,0.6826]
[1760543405912,0.3014,3981.6,3980.2,2.51238935]
[1760543406123,0.3014,3981.6,3980.2,2.51239145]
[1760543406448,2.51149538,3981.7,3979.6,0.2153]
[1760543406449,0.099,3981.5,3979.6,0.2153]
[1760543406747,2.51235524,3980.4,3979.6,2.51275328]
[1760543406945,0.2023,3980.7,3979.4,0.4673]
[1760543407111,2.51206224,3980.8,3980.0,2.51254895]
[1760543407306,0.2013,3980.9,3979.4,0.4673]
[1760543407549,3.240204,3979.4,3977.0,0.002]
[1760543407753,0.6336,3979.4,3977.1,0.6896]
[1760543408053,0.1032,3979.3,3977.1,0.6896]
[1760543408355,2.61623016,3979.3,3977.6,0.4673]
[1760543408515,2.51350267,3978.6,3977.6,0.4673]
[1760543408713,0.1032,3979.3,3977.1,0.6896]
[1760543408913,2.51360827,3978.4,3977.5,2.51413408]
[1760543409116,0.2213,3978.5,3977.0,0.002]
[1760543409326,2.73518923,3977.9,3977.0,0.002]
[1760543409820,0.2213,3977.9,3977.1,2.51434519]
[1760543410043,2.73518923,3977.9,3977.0,0.002]
[1760543410231,2.85278923,3977.9,3977.0,0.002]
[1760543411918,4.58078923,3977.9,3977.0,0.002]
[1760543412120,5.21438923,3977.9,3977.0,0.002]
[1760543412333,5.21358923,3977.9,3977.0,0.002]
[1760543412530,23.89892623,3977.9,3977.0,0.002]
[1760543412763,15.34710623,3977.9,3977.0,0.002]
[1760543413252,5.21358923,3977.9,3977.0,0.002]
[1760543413492,22.21225523,3977.9,3977.0,0.002]
[1760543413868,15.70847123,3977.9,3977.0,0.002]
[1760543414066,15.35347123,3977.9,3977.0,0.002]
[1760543414259,21.52405623,3977.9,3977.0,0.002]
[1760543414601,20.14435623,3977.9,3977.4,1e-08]
[1760543414750,15.28365604,3977.5,3977.4,1e-08]
[1760543415165,15.40125604,3977.5,3977.4,1e-08]
[1760543415372,29.66606804,3977.5,3977.4,1e-08]
[1760543415566,7.12912004,3977.5,3977.4,1e-08]
[1760543415783,7.62912004,3977.5,3977.4,1e-08]
[1760543416181,10.21680504,3977.5,3977.4,1e-08]
[1760543416490,4.99334204,3977.5,3977.4,1e-08]
[1760543416689,7.40553704,3977.5,3977.4,1e-08]
[1760543416861,4.99334204,3977.5,3977.4,1e-08]
[1760543417804,4.24214204,3977.5,3977.4,1e-08]
[1760543418167,2.51521706,3975.8,3975.7,0.003]
[1760543418504,4.87681706,3975.8,3975.7,1e-08]
[1760543418671,19.68873206,3975.8,3975.7,1e-08]
[1760543418865,14.32727106,3975.8,3975.7,1e-08]
[1760543419066,32.26122906,3975.8,3975.7,1e-08]
[1760543419269,14.64135406,3975.8,3975.7,1e-08]
[1760543419882,0.6336,3975.6,3973.1,3.3828336]
[1760543420088,0.2203,3973.2,3973.1,3.3828336]
[1760543420285,0.2213,3973.6,3973.1,3.3828336]
[1760543420488,1.728,3973.5,3973.1,3.3828336]
[1760543420654,2.51686298,3973.2,3973.1,3.3828336]
[1760543420879,1.29221971,3977.5,3973.1,3.6051336]
[1760543421079,0.1188,3975.1,3973.4,2.51669275]
[1760543421404,1.728,3974.7,3973.3,2.51679963]
[1760543421607,1.728,3974.7,3973.2,0.77781336]
[1760543421608,2.51591591,3974.7,3973.4,0.4673]
[1760543421807,1.728,3975.4,3973.4,2.98403167]
[1760543422119,0.6336,3975.5,3973.5,0.4673]
[1760543422305,1.728,3975.0,3973.5,0.4673]
[1760543422619,1.728,3974.5,3973.6,2.51660962]
[1760543422785,2.5158687,3974.8,3973.7,0.29839096]
[1760543422986,0.6336,3975.3,3973.5,0.4673]
[1760543422987,10.900635,3975.3,3973.5,0.4673]
[1760543423217,2.51608127,3974.5,3973.5,0.4673]
[1760543423402,1.728,3975.2,3973.7,2.51654405]
[1760543423705,1.728,3975.2,3973.2,0.31051336]
[1760543423706,0.3356,3975.6,3973.9,2.51641963]
[1760543423919,4.24321775,3975.8,3973.9,2.51641963]
[1760543423920,2.51521706,3975.8,3974.0,0.4673]
[1760543424118,2.51584112,3974.9,3974.1,0.2223]
[1760543424517,2.51582645,3974.9,3974.1,0.2223]
[1760543424716,2.83319057,3975.9,3974.1,0.2223]
[1760543424921,5.698049,3975.7,3974.1,0.2223]
[1760543425085,0.7511,3975.6,3971.5,2.51791012]
[1760543425403,0.7511,3975.6,3970.9,0.2223]
[1760543425404,2.51686298,3973.2,3973.1,3.3828336]
[1760543425607,2.51671721,3973.5,3973.1,3.3828336]
[1760543425816,0.6336,3974.0,3973.1,3.3828336]
[1760543426227,2.51686298,3973.2,3973.1,3.3828336]
[1760543426390,0.6336,3974.0,3973.1,3.3828336]
[1760543426591,2.51686298,3973.2,3973.1,3.3828336]
[1760543427089,0.1196,3974.1,3973.1,3.3828336]
[1760543427290,0.6336,3974.0,3973.1,3.3828336]
[1760543427528,2.51686298,3973.2,3973.1,3.3828336]
[1760543428329,3.27006298,3973.2,3973.1,3.3828336]
[1760543428545,2.51635631,3974.0,3973.1,3.3828336]
[1760543428750,2.51661883,3973.6,3973.1,3.6051336]
[1760543428908,0.1196,3973.5,3973.1,3.3828336]
[1760543429253,2.51686298,3973.2,3973.1,3.3828336]
[1760543429809,2.51684277,3973.3,3973.1,3.3828336]
[1760543430010,2.51666031,3973.6,3973.1,3.3828336]
[1760543430209,2.51588256,3974.8,3973.1,3.3828336]
[1760543430210,2.51650816,3973.8,3973.2,0.6896]
[1760543430412,2.51662091,3973.6,3973.2,0.6896]
[1760543430612,2.51654715,3973.7,3973.2,0.6896]
[1760543430831,2.51666847,3973.6,3973.2,0.6896]
[1760543431153,0.001,3974.0,3973.1,3.3848336]
[1760543431312,0.6346,3974.0,3973.1,3.3848336]
[1760543431513,2.51644806,3973.9,3973.2,0.2223]
[1760543431738,2.51649287,3973.8,3973.2,0.2223]
[1760543431941,0.001,3974.0,3973.2,0.6896]
[1760543432181,0.001,3974.0,3973.2,0.2223]
[1760543432326,2.51686298,3973.2,3973.1,3.3848336]
[1760543432512,2.51672051,3973.5,3973.1,3.3848336]
[1760543432713,2.51666687,3973.6,3973.1,3.6071336]
[1760543432913,0.001,3974.0,3973.1,4.0744336]